[Event "EYCC Open U14 2021"]
[Site "Tornelo"]
[Date "2021.10.15"]
[Round "1.1"]
[White "Shamatava, Nikolozi"]
[Black "Khubukshanov, Erdem"]
[Result "0-1"]
[ECO "D30"]
[WhiteElo "1864"]
[BlackElo "2373"]
[Annotator "ChessBase"]
[PlyCount "56"]
[EventDate "2021.10.15"]
[EventType "swiss"]
[EventCountry "NET"]
[SourceTitle "playchess.com"]
[Source "ChessBase"]
[SourceQuality "1"]
[TimeControl "5400+30"]

1. d4 {[%emt 0:00:30]} d5 {[%emt 0:00:36]} 2. c4 {[%emt 0:00:19]} e6 {[%emt 0:00:04]} 3. Nf3 {[%emt 0:00:20]} c6 {[%emt 0:00:04]} 4. Qc2 {[%emt 0:00:07]} Nf6 {[%emt 0:00:23]} 5. g3 {[%emt 0:00:18]} dxc4 {[%emt 0:00:21]} 6. Qxc4 {[%emt 0:00:09]} b5 {[%emt 0:00:05]} 7. Qc2 {[%emt 0:00:08]} Bb7 {[%emt 0:00:56]} 8. Bg2 {[%emt 0:01:23]} Nbd7 {[%emt 0:01:16]} 9. O-O {[%emt 0:05:25]} c5 {[%emt 0:00:13]} 10. dxc5 {[%emt 0:05:54]} Bxc5 {[%emt 0:00:25]} 11. Nc3 {[%emt 0:07:54]} Rc8 {[%emt 0:00:55]} 12. a3 {[%emt 0:00:25]} Qb6 {[%emt 0:02:04]} 13. e4 {[%emt 0:06:06]} O-O {[%emt 0:04:30]} 14. Bg5 {[%emt 0:05:15]} h6 {[%emt 0:02:16]} 15. Bxf6 {[%emt 0:00:18]} Nxf6 {[%emt 0:00:04]} 16. Rac1 {[%emt 0:12:52]} a5 {[%emt 0:06:32]} 17. e5 {[%emt 0:01:05]} Ng4 {[%emt 0:03:24]} 18. Qe2 {[%emt 0:07:01]} b4 {[%emt 0:09:33]} 19. Na4 {[%emt 0:02:03]} Bxf2+ {[%emt 0:00:05]} 20. Kh1 {[%emt 0:00:06]} Qe3 {[%emt 0:00:04]} 21. Qxe3 {[%emt 0:04:44]} Bxe3 {[%emt 0:06:37]} 22. Rxc8 {[%emt 0:02:41]} Rxc8 {[%emt 0:00:05]} 23. h3 {[%emt 0:01:06]} Nf2+ {[%emt 0:00:25]} 24. Kh2 {[%emt 0:00:02]} Bc6 {[%emt 0:03:19]} 25. Re1 {[%emt 0:00:22]} Bxa4 {[%emt 0:04:07]} 26. Rxe3 {[%emt 0:00:05]} Nd1 {[%emt 0:00:03]} 27. Re2 {[%emt 0:00:27]} Rc2 {[%emt 0:02:48]} 28. Re4 {[%emt 0:08:58]} Bc6 {[%emt 0:00:26]} 0-1

[Event "EYCC Open U14 2021"]
[Site "Tornelo"]
[Date "2021.10.15"]
[Round "1.2"]
[White "Klimkowski, Jan"]
[Black "Jakovic, Roko"]
[Result "1-0"]
[ECO "B94"]
[WhiteElo "2366"]
[BlackElo "1854"]
[Annotator "NA"]
[PlyCount "109"]
[EventDate "2021.10.15"]
[EventType "swiss"]
[EventCountry "NET"]
[SourceTitle "playchess.com"]
[Source "ChessBase"]
[SourceQuality "1"]
[TimeControl "5400+30"]

1. e4 {[%emt 0:00:30]} c5 {[%emt 0:01:11]} 2. Nf3 {[%emt 0:00:09]} d6 {[%emt 0:00:13]} 3. d4 {[%emt 0:00:07]} cxd4 {[%emt 0:00:07]} 4. Nxd4 {[%emt 0:00:10]} Nf6 {[%emt 0:00:09]} 5. Nc3 {[%emt 0:00:08]} a6 {[%emt 0:00:18]} 6. Nb3 {[%emt 0:00:12]} e5 {[%emt 0:04:49]} 7. Bg5 {[%emt 0:00:09]} Be7 {[%emt 0:03:32]} 8. Bxf6 {[%emt 0:00:30]} Bxf6 {[%emt 0:03:09]} 9. Qd3 {[%emt 0:00:08]} Be6 $14 {[%emt 0:07:18]} 10. O-O-O {[%emt 0:00:20]} Be7 {[%emt 0:01:03]} 11. g3 {[%emt 0:00:17]} O-O {[%emt 0:05:46]} 12. f4 {[%emt 0:00:16]} Nc6 {[%emt 0:09:00]} 13. Kb1 {[%emt 0:06:30]} Rc8 {[%emt 0:03:17]} 14. Qe3 {[%emt 0:07:27]} Qc7 {[%emt 0:09:13]} 15. h4 {[%emt 0:07:57]} b5 {[%emt 0:07:37]} 16. Bh3 {[%emt 0:03:36]} Rcd8 {[%emt 0:07:47]} 17. f5 {[%emt 0:09:48]} Bxb3 {[%emt 0:04:53]} 18. cxb3 {[%emt 0:01:42]} Nd4 {[%emt 0:04:11]} 19. Rc1 {[%emt 0:00:21]} Qb7 {[%emt 0:01:19]} 20. Nd5 {[%emt 0:00:47]} Bf6 {[%emt 0:06:15]} 21. g4 {[%emt 0:02:49]} Rc8 {[%emt 0:04:15]} 22. g5 {[%emt 0:00:47]} Bd8 {[%emt 0:00:35]} 23. Rxc8 {[%emt 0:01:54]} Qxc8 {[%emt 0:00:16]} 24. Rc1 {[%emt 0:00:20]} Qb7 {[%emt 0:01:46]} 25. f6 {[%emt 0:00:49]} Ne6 {[%emt 0:06:15]} 26. fxg7 {[%emt 0:02:30]} Kxg7 {[%emt 0:01:31]} 27. Bf5 {[%emt 0:01:45]} Nd4 {[%emt 0:03:20]} 28. Bc8 {[%emt 0:04:20]} Qa7 {[%emt 0:01:01]} 29. Qf2 {[%emt 0:02:22]} Nc6 {[%emt 0:01:23]} 30. Qxa7 {[%emt 0:05:23]} Nxa7 {[%emt 0:00:05]} 31. Bxa6 {[%emt 0:00:07]} h6 {[%emt 0:01:04]} 32. a4 {[%emt 0:02:20]} b4 {[%emt 0:02:05]} 33. Nxb4 {[%emt 0:00:25]} hxg5 {[%emt 0:00:06]} 34. hxg5 {[%emt 0:00:04]} Bxg5 {[%emt 0:00:17]} 35. Rc7 {[%emt 0:00:18]} Be3 {[%emt 0:01:25]} 36. Nd5 {[%emt 0:00:19]} Bd4 {[%emt 0:00:19]} 37. b4 {[%emt 0:00:36]} Rh8 {[%emt 0:01:07]} 38. b5 {[%emt 0:00:37]} Rh1+ {[%emt 0:00:33]} 39. Rc1 {[%emt 0:00:12]} Rxc1+ {[%emt 0:00:48]} 40. Kxc1 {[%emt 0:00:09]} Kf8 {[%emt 0:00:27]} 41. b6 {[%emt 0:00:16]} Nc6 {[%emt 0:00:07]} 42. Bb5 {[%emt 0:00:22]} Na5 {[%emt 0:00:17]} 43. b4 {[%emt 0:00:17]} Nb3+ {[%emt 0:01:07]} 44. Kc2 {[%emt 0:00:12]} Na1+ {[%emt 0:00:18]} 45. Kd3 {[%emt 0:00:05]} Nb3 {[%emt 0:00:33]} 46. a5 {[%emt 0:00:10]} Nc1+ {[%emt 0:00:03]} 47. Kc4 {[%emt 0:00:09]} f5 {[%emt 0:00:43]} 48. a6 {[%emt 0:00:08]} f4 {[%emt 0:00:26]} 49. a7 {[%emt 0:00:10]} f3 {[%emt 0:00:03]} 50. a8=Q+ {[%emt 0:00:34]} Kg7 {[%emt 0:00:05]} 51. Qb7+ {[%emt 0:00:24]} Kh6 {[%emt 0:00:03]} 52. Nf6 {[%emt 0:00:10]} Kg5 {[%emt 0:00:33]} 53. Qg7+ {[%emt 0:00:11]} Kf4 {[%emt 0:00:04]} 54. Nd5+ {[%emt 0:00:07]} Kxe4 {[%emt 0:00:09]} 55. Qg4# {[%emt 0:00:10]} 1-0

[Event "EYCC Open U14 2021"]
[Site "Tornelo"]
[Date "2021.10.15"]
[Round "1.3"]
[White "Strand, Vetle Bjorge"]
[Black "Macias Pino, Diego"]
[Result "1/2-1/2"]
[ECO "D00"]
[WhiteElo "1833"]
[BlackElo "2365"]
[Annotator "NA"]
[PlyCount "134"]
[EventDate "2021.10.15"]
[EventType "swiss"]
[EventCountry "NET"]
[SourceTitle "playchess.com"]
[Source "ChessBase"]
[SourceQuality "1"]
[TimeControl "5400+30"]

1. d4 {[%emt 0:00:30]} d5 {[%emt 0:00:36]} 2. Bf4 {[%emt 0:00:18]} Nf6 {[%emt 0:00:35]} 3. e3 {[%emt 0:00:24]} c5 {[%emt 0:00:18]} 4. c3 {[%emt 0:00:32]} e6 {[%emt 0:03:52]} 5. Bd3 {[%emt 0:00:56]} Qb6 {[%emt 0:03:33]} 6. Qc2 {[%emt 0:05:14]} Bd6 {[%emt 0:04:23]} 7. Bg3 {[%emt 0:01:36]} Bd7 {[%emt 0:01:57]} 8. Nf3 {[%emt 0:01:10]} Bxg3 {[%emt 0:00:49]} 9. hxg3 {[%emt 0:01:26]} Nc6 {[%emt 0:02:37]} 10. Nbd2 $11 {[%emt 0:01:18]} h6 {[%emt 0:02:25]} 11. O-O {[%emt 0:06:26]} Rc8 {[%emt 0:03:54]} 12. dxc5 {[%emt 0:06:26]} Qxc5 {[%emt 0:00:12]} 13. Rac1 {[%emt 0:01:59]} Qa5 {[%emt 0:10:13]} 14. Qb1 {[%emt 0:02:26]} O-O {[%emt 0:02:08]} 15. e4 {[%emt 0:00:49]} dxe4 {[%emt 0:00:44]} 16. Nxe4 {[%emt 0:00:56]} Nxe4 {[%emt 0:00:36]} 17. Bxe4 {[%emt 0:00:07]} f5 {[%emt 0:00:12]} 18. Bc2 {[%emt 0:02:30]} e5 {[%emt 0:03:10]} 19. Bb3+ {[%emt 0:02:24]} Kh8 {[%emt 0:04:54]} 20. Rcd1 {[%emt 0:19:32]} Rcd8 {[%emt 0:23:25]} 21. Rd5 {[%emt 0:08:21]} Qc7 {[%emt 0:00:13]} 22. Rfd1 {[%emt 0:02:06]} e4 {[%emt 0:01:14]} 23. Nd4 {[%emt 0:06:50]} Ne7 {[%emt 0:02:47]} 24. Rxd7 {[%emt 0:02:15]} Qxd7 {[%emt 0:00:36]} 25. Ne6 {[%emt 0:00:39]} Qc8 {[%emt 0:00:10]} 26. Rxd8 {[%emt 0:01:32]} Rxd8 {[%emt 0:00:06]} 27. Nxd8 {[%emt 0:00:02]} Qxd8 {[%emt 0:00:02]} 28. Qd1 {[%emt 0:00:30]} Qc7 {[%emt 0:01:33]} 29. Qd4 {[%emt 0:01:09]} b6 {[%emt 0:00:36]} 30. g4 {[%emt 0:04:22]} fxg4 {[%emt 0:02:17]} 31. Qxe4 {[%emt 0:01:47]} h5 {[%emt 0:03:05]} 32. Qe3 {[%emt 0:02:54]} Kh7 {[%emt 0:03:01]} 33. Qg5 {[%emt 0:02:44]} g6 {[%emt 0:01:10]} 34. Qf6 {[%emt 0:01:37]} Nc6 {[%emt 0:00:22]} 35. Qf7+ {[%emt 0:01:21]} Qxf7 {[%emt 0:00:10]} 36. Bxf7 {[%emt 0:00:03]} Ne5 {[%emt 0:00:21]} 37. Bd5 {[%emt 0:02:54]} Nd3 {[%emt 0:05:06]} 38. b4 {[%emt 0:01:13]} Kh6 {[%emt 0:01:11]} 39. Kf1 {[%emt 0:02:48]} Kg5 {[%emt 0:01:44]} 40. g3 {[%emt 0:01:47]} Kf5 {[%emt 0:00:50]} 41. Ke2 {[%emt 0:00:33]} Ne5 {[%emt 0:00:43]} 42. c4 {[%emt 0:01:56]} g5 {[%emt 0:09:17]} 43. c5 {[%emt 0:01:26]} bxc5 {[%emt 0:00:01]} 44. bxc5 {[%emt 0:00:02]} Kf6 {[%emt 0:00:05]} 45. c6 {[%emt 0:02:59]} Ke7 {[%emt 0:00:02]} 46. Ke3 {[%emt 0:00:20]} Kd6 {[%emt 0:00:21]} 47. Ke4 {[%emt 0:00:30]} Nf3 {[%emt 0:02:11]} 48. Kf5 {[%emt 0:02:04]} Nd4+ {[%emt 0:02:10]} 49. Kg6 {[%emt 0:00:29]} h4 {[%emt 0:00:20]} 50. Bh1 {[%emt 0:00:39]} hxg3 {[%emt 0:02:28]} 51. fxg3 {[%emt 0:00:07]} Ne2 {[%emt 0:00:01]} 52. Kxg5 {[%emt 0:00:15]} Nxg3 {[%emt 0:00:05]} 53. Bg2 {[%emt 0:00:13]} Ne2 {[%emt 0:00:07]} 54. Kxg4 {[%emt 0:00:34]} a5 {[%emt 0:00:15]} 55. Kf3 {[%emt 0:00:44]} Nc3 {[%emt 0:00:11]} 56. Ke3 {[%emt 0:00:31]} Nxa2 {[%emt 0:00:08]} 57. Kd4 {[%emt 0:00:25]} Nb4 {[%emt 0:00:04]} 58. Kc4 {[%emt 0:00:21]} Nxc6 {[%emt 0:00:06]} 59. Bxc6 {[%emt 0:00:21]} Kxc6 {[%emt 0:00:05]} 60. Kb3 {[%emt 0:00:02]} Kb5 {[%emt 0:00:04]} 61. Ka3 {[%emt 0:00:04]} a4 {[%emt 0:00:03]} 62. Ka2 {[%emt 0:00:06]} Kb4 {[%emt 0:00:02]} 63. Kb2 {[%emt 0:00:03]} a3+ {[%emt 0:00:04]} 64. Ka2 {[%emt 0:00:02]} Ka4 {[%emt 0:00:02]} 65. Ka1 {[%emt 0:00:05]} Kb3 {[%emt 0:00:03]} 66. Kb1 {[%emt 0:00:04]} a2+ {[%emt 0:00:04]} 67. Ka1 {[%emt 0:00:04]} Ka3 {[%emt 0:00:01]} 1/2-1/2

[Event "EYCC Open U14 2021"]
[Site "Tornelo"]
[Date "2021.10.15"]
[Round "1.4"]
[White "Habans Aguerrea, Javier"]
[Black "Pashikyan, Rudolf"]
[Result "1/2-1/2"]
[ECO "E04"]
[WhiteElo "2308"]
[BlackElo "1831"]
[Annotator "NA"]
[PlyCount "98"]
[EventDate "2021.10.15"]
[EventType "swiss"]
[EventCountry "NET"]
[SourceTitle "playchess.com"]
[Source "ChessBase"]
[SourceQuality "1"]
[TimeControl "5400+30"]

1. d4 {[%emt 0:00:30]} d5 {[%emt 0:00:39]} 2. c4 {[%emt 0:00:11]} e6 {[%emt 0:00:12]} 3. Nf3 {[%emt 0:00:09]} Nf6 {[%emt 0:00:03]} 4. g3 {[%emt 0:00:41]} dxc4 {[%emt 0:00:06]} 5. Bg2 {[%emt 0:00:57]} Nc6 {[%emt 0:00:14]} 6. Qa4 {[%emt 0:02:48]} Bb4+ {[%emt 0:00:13]} 7. Bd2 {[%emt 0:01:49]} Nd5 {[%emt 0:00:30]} 8. Bxb4 {[%emt 0:18:07]} Ndxb4 {[%emt 0:00:25]} 9. O-O {[%emt 0:00:49]} Rb8 $11 {[%emt 0:04:09]} 10. Nc3 {[%emt 0:16:31]} a6 {[%emt 0:28:52]} 11. Ne5 {[%emt 0:05:04]} O-O {[%emt 0:01:33]} 12. Nxc6 {[%emt 0:01:14]} Nxc6 {[%emt 0:00:23]} 13. Bxc6 {[%emt 0:05:15]} bxc6 {[%emt 0:00:12]} 14. Qxc4 {[%emt 0:01:24]} Rxb2 {[%emt 0:00:38]} 15. e3 {[%emt 0:01:03]} Qd6 {[%emt 0:17:07]} 16. Ne4 {[%emt 0:07:07]} Qd5 {[%emt 0:01:04]} 17. Qxd5 {[%emt 0:00:32]} cxd5 {[%emt 0:01:16]} 18. Nc5 {[%emt 0:00:11]} f6 {[%emt 0:12:15]} 19. Rfb1 {[%emt 0:08:26]} Rb6 {[%emt 0:00:42]} 20. a4 {[%emt 0:04:13]} e5 {[%emt 0:05:02]} 21. a5 {[%emt 0:00:36]} Rc6 {[%emt 0:00:49]} 22. Rb8 {[%emt 0:01:07]} Bg4 {[%emt 0:08:15]} 23. Rab1 {[%emt 0:01:24]} exd4 {[%emt 0:01:03]} 24. exd4 {[%emt 0:01:16]} Be2 {[%emt 0:00:12]} 25. Rxf8+ {[%emt 0:01:10]} Kxf8 {[%emt 0:00:27]} 26. Rb8+ {[%emt 0:00:28]} Ke7 {[%emt 0:00:17]} 27. Rg8 {[%emt 0:00:24]} Kf7 {[%emt 0:00:27]} 28. Rd8 {[%emt 0:00:17]} Rd6 {[%emt 0:00:12]} 29. Rc8 {[%emt 0:00:27]} Rc6 {[%emt 0:00:07]} 30. f4 {[%emt 0:00:43]} h5 {[%emt 0:04:41]} 31. Kf2 {[%emt 0:00:50]} Bc4 {[%emt 0:00:56]} 32. Ke3 {[%emt 0:03:08]} Bb5 {[%emt 0:00:28]} 33. Kd2 {[%emt 0:01:11]} Bc4 {[%emt 0:00:43]} 34. Kc3 {[%emt 0:00:09]} Bb5 {[%emt 0:00:48]} 35. Kb4 {[%emt 0:00:10]} Kg6 {[%emt 0:00:53]} 36. Rd8 {[%emt 0:01:20]} Bc4 {[%emt 0:01:18]} 37. Rd7 {[%emt 0:00:13]} f5 {[%emt 0:02:16]} 38. h4 {[%emt 0:01:41]} Kf6 {[%emt 0:00:17]} 39. Rd8 {[%emt 0:01:43]} Ke7 {[%emt 0:01:07]} 40. Rc8 {[%emt 0:00:37]} Bb5 {[%emt 0:00:31]} 41. Rb8 {[%emt 0:04:37]} Bc4 {[%emt 0:01:57]} 42. Rh8 {[%emt 0:03:01]} Rh6 {[%emt 0:00:08]} 43. Rc8 {[%emt 0:01:38]} Rc6 {[%emt 0:00:21]} 44. Ka4 {[%emt 0:03:04]} Bb5+ {[%emt 0:02:05]} 45. Kb4 {[%emt 0:00:02]} Bc4 {[%emt 0:00:05]} 46. Ra8 {[%emt 0:00:45]} Rg6 {[%emt 0:00:33]} 47. Ra7 {[%emt 0:01:15]} Kd8 {[%emt 0:03:34]} 48. Ra8+ {[%emt 0:00:11]} Ke7 {[%emt 0:00:04]} 49. Rc8 {[%emt 0:01:22]} Rc6 {[%emt 0:00:08]} 1/2-1/2

[Event "EYCC Open U14 2021"]
[Site "Tornelo"]
[Date "2021.10.15"]
[Round "1.5"]
[White "Gudmundsson, Gunnar Erik"]
[Black "Seemann, Jakub"]
[Result "0-1"]
[ECO "E92"]
[WhiteElo "1830"]
[BlackElo "2299"]
[Annotator "ChessBase"]
[PlyCount "78"]
[EventDate "2021.10.15"]
[EventType "swiss"]
[EventCountry "NET"]
[SourceTitle "playchess.com"]
[Source "ChessBase"]
[SourceQuality "1"]
[TimeControl "5400+30"]

1. d4 {[%emt 0:00:30]} Nf6 {[%emt 0:00:37]} 2. c4 {[%emt 0:00:11]} g6 {[%emt 0:00:03]} 3. Nc3 {[%emt 0:00:06]} Bg7 {[%emt 0:00:10]} 4. e4 {[%emt 0:00:13]} d6 {[%emt 0:00:33]} 5. Nf3 {[%emt 0:00:21]} O-O {[%emt 0:00:09]} 6. Be2 {[%emt 0:00:26]} e5 {[%emt 0:00:11]} 7. Be3 {[%emt 0:01:11]} Ng4 {[%emt 0:02:29]} 8. Bg5 {[%emt 0:01:26]} f6 {[%emt 0:00:47]} 9. Bc1 {[%emt 0:00:31]} exd4 {[%emt 0:01:49]} 10. Nxd4 {[%emt 0:01:36]} f5 {[%emt 0:00:23]} 11. h3 {[%emt 0:07:10]} Ne5 {[%emt 0:08:06]} 12. exf5 {[%emt 0:02:42]} gxf5 {[%emt 0:01:29]} 13. O-O {[%emt 0:02:09]} f4 {[%emt 0:14:18]} 14. Re1 {[%emt 0:08:59]} Nbc6 {[%emt 0:02:33]} 15. Nxc6 {[%emt 0:01:43]} bxc6 {[%emt 0:03:14]} 16. Bf3 {[%emt 0:13:12]} Rb8 {[%emt 0:12:05]} 17. Re4 {[%emt 0:08:00]} Qh4 {[%emt 0:07:48]} 18. Qe2 {[%emt 0:12:00]} Bd7 {[%emt 0:06:33]} 19. b3 {[%emt 0:09:19]} Bxh3 {[%emt 0:04:48]} 20. Bd2 {[%emt 0:08:11]} Nxf3+ {[%emt 0:01:30]} 21. Qxf3 {[%emt 0:00:22]} Bg4 {[%emt 0:00:10]} 22. Rxf4 {[%emt 0:01:11]} Rxf4 {[%emt 0:00:12]} 23. Qxf4 {[%emt 0:00:33]} Be5 {[%emt 0:00:09]} 24. Qg5+ {[%emt 0:01:52]} Qxg5 {[%emt 0:00:06]} 25. Bxg5 {[%emt 0:00:01]} Bxc3 {[%emt 0:00:05]} 26. Rc1 {[%emt 0:00:11]} Be5 {[%emt 0:00:13]} 27. f3 {[%emt 0:00:32]} Bf5 {[%emt 0:00:23]} 28. Be3 {[%emt 0:00:35]} c5 {[%emt 0:00:08]} 29. Rd1 {[%emt 0:00:23]} a5 {[%emt 0:00:22]} 30. g4 {[%emt 0:00:30]} Be6 {[%emt 0:00:34]} 31. Rd3 {[%emt 0:00:56]} a4 {[%emt 0:00:19]} 32. f4 {[%emt 0:00:20]} Bg7 {[%emt 0:00:16]} 33. f5 {[%emt 0:00:15]} Bf7 {[%emt 0:00:08]} 34. Kg2 {[%emt 0:00:44]} Be5 {[%emt 0:00:12]} 35. Kf3 {[%emt 0:00:49]} Be8 {[%emt 0:00:07]} 36. g5 {[%emt 0:00:24]} Bc6+ {[%emt 0:00:18]} 37. Kg4 {[%emt 0:00:06]} Be4 {[%emt 0:00:06]} 38. Rd2 {[%emt 0:00:52]} axb3 {[%emt 0:00:29]} 39. axb3 {[%emt 0:00:05]} Rxb3 {[%emt 0:00:07]} 0-1

[Event "EYCC Open U14 2021"]
[Site "Tornelo"]
[Date "2021.10.15"]
[Round "1.6"]
[White "Vergara Anton, Diego"]
[Black "Aamodt, Peder Marcus"]
[Result "1-0"]
[ECO "E04"]
[WhiteElo "2258"]
[BlackElo "1808"]
[Annotator "ChessBase"]
[PlyCount "39"]
[EventDate "2021.10.15"]
[EventType "swiss"]
[EventCountry "NET"]
[SourceTitle "playchess.com"]
[Source "ChessBase"]
[SourceQuality "1"]
[TimeControl "5400+30"]

1. d4 {[%emt 0:00:30]} Nf6 {[%emt 0:00:53]} 2. Nf3 {[%emt 0:00:31]} d5 {[%emt 0:00:12]} 3. c4 {[%emt 0:00:25]} e6 {[%emt 0:00:12]} 4. g3 {[%emt 0:00:20]} dxc4 {[%emt 0:00:11]} 5. Bg2 {[%emt 0:01:01]} Nc6 {[%emt 0:00:26]} 6. O-O {[%emt 0:02:11]} a6 {[%emt 0:01:30]} 7. a4 {[%emt 0:10:47]} Rb8 {[%emt 0:00:10]} 8. e3 {[%emt 0:14:23]} Be7 {[%emt 0:01:05]} 9. Nfd2 {[%emt 0:05:13]} Na5 {[%emt 0:03:18]} 10. Qc2 {[%emt 0:03:56]} O-O {[%emt 0:04:20]} 11. Rd1 {[%emt 0:05:32]} Nd5 {[%emt 0:06:01]} 12. Nxc4 {[%emt 0:01:33]} Nxc4 {[%emt 0:03:00]} 13. Qxc4 {[%emt 0:00:24]} b5 {[%emt 0:00:14]} 14. axb5 {[%emt 0:01:55]} axb5 {[%emt 0:00:08]} 15. Qe2 {[%emt 0:00:36]} b4 {[%emt 0:15:23]} 16. Nd2 {[%emt 0:05:30]} Bb7 {[%emt 0:09:23]} 17. Nb3 {[%emt 0:03:55]} Ra8 {[%emt 0:03:56]} 18. Bd2 {[%emt 0:03:06]} Rxa1 {[%emt 0:02:44]} 19. Rxa1 {[%emt 0:00:57]} Nf4 {[%emt 0:02:04]} 20. exf4 {[%emt 0:01:05]} 1-0

[Event "EYCC Open U14 2021"]
[Site "Tornelo"]
[Date "2021.10.15"]
[Round "1.7"]
[White "Ribeiro, Gustavo"]
[Black "Olenik Campa, Rudi"]
[Result "0-1"]
[ECO "A21"]
[WhiteElo "1801"]
[BlackElo "2245"]
[Annotator "NA"]
[PlyCount "112"]
[EventDate "2021.10.15"]
[EventType "swiss"]
[EventCountry "NET"]
[SourceTitle "playchess.com"]
[Source "ChessBase"]
[SourceQuality "1"]
[TimeControl "5400+30"]

1. c4 {[%emt 0:00:30]} g6 {[%emt 0:00:45]} 2. g3 {[%emt 0:00:22]} Bg7 {[%emt 0:00:10]} 3. Bg2 {[%emt 0:00:13]} d6 {[%emt 0:00:08]} 4. Nc3 {[%emt 0:00:16]} e5 {[%emt 0:00:34]} 5. d3 {[%emt 0:00:17]} Ne7 {[%emt 0:01:01]} 6. Rb1 {[%emt 0:01:14]} c6 {[%emt 0:03:53]} 7. Bg5 {[%emt 0:07:42]} h6 {[%emt 0:02:21]} 8. Bxe7 {[%emt 0:02:04]} Qxe7 {[%emt 0:00:04]} 9. e3 {[%emt 0:00:18]} O-O {[%emt 0:04:22]} 10. Nge2 {[%emt 0:02:11]} f5 {[%emt 0:01:09]} 11. O-O {[%emt 0:00:44]} g5 $11 {[%emt 0:03:06]} 12. f4 {[%emt 0:04:35]} Nd7 {[%emt 0:14:27]} 13. Qd2 {[%emt 0:03:36]} Nf6 {[%emt 0:05:57]} 14. fxe5 {[%emt 0:02:16]} dxe5 {[%emt 0:00:50]} 15. Rbe1 {[%emt 0:02:14]} Be6 {[%emt 0:03:10]} 16. d4 {[%emt 0:04:40]} Bxc4 {[%emt 0:02:39]} 17. Rxf5 {[%emt 0:00:58]} Ng4 {[%emt 0:01:14]} 18. Rxf8+ {[%emt 0:03:08]} Rxf8 {[%emt 0:00:44]} 19. h3 {[%emt 0:01:04]} Nf6 {[%emt 0:04:32]} 20. e4 {[%emt 0:02:15]} Rd8 {[%emt 0:00:55]} 21. Qe3 {[%emt 0:01:05]} Ng4 {[%emt 0:04:51]} 22. hxg4 {[%emt 0:06:56]} exd4 {[%emt 0:00:56]} 23. Qf2 {[%emt 0:01:49]} dxc3 {[%emt 0:01:00]} 24. bxc3 {[%emt 0:00:48]} c5 {[%emt 0:03:31]} 25. Bf1 {[%emt 0:02:37]} Be5 {[%emt 0:05:57]} 26. Nf4 {[%emt 0:02:00]} gxf4 {[%emt 0:07:11]} 27. Bxc4+ {[%emt 0:00:16]} Kh8 {[%emt 0:00:33]} 28. gxf4 {[%emt 0:01:35]} Bxc3 {[%emt 0:00:54]} 29. Qh2 {[%emt 0:00:50]} Qg7 {[%emt 0:00:14]} 30. Re2 {[%emt 0:06:55]} Qxg4+ {[%emt 0:05:19]} 31. Kf2 {[%emt 0:01:52]} Bd4+ {[%emt 0:00:29]} 32. Ke1 {[%emt 0:00:28]} h5 {[%emt 0:01:21]} 33. Bd5 {[%emt 0:02:29]} Qf3 {[%emt 0:02:29]} 34. f5 {[%emt 0:03:03]} c4 {[%emt 0:05:06]} 35. Qg2 {[%emt 0:03:51]} Bc3+ {[%emt 0:00:53]} 36. Kd1 {[%emt 0:00:13]} Qd3+ {[%emt 0:00:03]} 37. Kc1 {[%emt 0:00:06]} Bb4 {[%emt 0:00:06]} 38. f6 {[%emt 0:01:08]} Ba3+ {[%emt 0:00:15]} 39. Rb2 {[%emt 0:00:08]} Bxb2+ {[%emt 0:00:23]} 40. Qxb2 {[%emt 0:00:20]} Qf1+ {[%emt 0:02:07]} 41. Kc2 {[%emt 0:00:08]} Qe2+ {[%emt 0:00:24]} 42. Kc3 {[%emt 0:00:07]} Qxb2+ {[%emt 0:00:27]} 43. Kxb2 {[%emt 0:00:14]} h4 {[%emt 0:00:18]} 44. Kc3 {[%emt 0:00:13]} Kh7 {[%emt 0:01:45]} 45. Be6 {[%emt 0:01:58]} Kg6 {[%emt 0:00:20]} 46. e5 {[%emt 0:00:11]} b5 {[%emt 0:00:25]} 47. a4 {[%emt 0:01:23]} a6 {[%emt 0:00:09]} 48. axb5 {[%emt 0:00:33]} axb5 {[%emt 0:00:04]} 49. Kb4 {[%emt 0:00:17]} Re8 {[%emt 0:00:32]} 50. f7 {[%emt 0:00:06]} Rf8 {[%emt 0:00:04]} 51. Kxb5 {[%emt 0:00:58]} c3 {[%emt 0:00:06]} 52. Bb3 {[%emt 0:00:23]} h3 {[%emt 0:00:08]} 53. e6 {[%emt 0:00:14]} Kf6 {[%emt 0:00:04]} 54. Kc6 {[%emt 0:00:18]} Ke7 {[%emt 0:00:04]} 55. Bd1 {[%emt 0:00:30]} h2 {[%emt 0:00:05]} 56. Bf3 {[%emt 0:00:07]} c2 {[%emt 0:00:04]} 0-1